fUST/lending_fUST_20250811
["ID","MTS","AMOUNT","RATE_DAILY","PERIOD"]
[378473133,1754878254334,-622.0,0.00024543,2]
[378473134,1754878254344,-190.2,0.00024596,3]
[378473135,1754878254353,-460.0,0.00024615,2]
[378473136,1754878254363,-1142.4,0.00024615,2]
[378473137,1754878254372,-974.2,0.00024615,2]
[378473138,1754878254383,-2047.56,0.00024615,2]
[378473139,1754878254393,-615.78,0.00024616,2]
[378473140,1754878254402,-1244.45,0.00024616,2]
[378473141,1754878254411,-273.68536956,0.00024616,2]
[378473142,1754878254421,-846.32,0.00024616,2]
[378473143,1754878254431,-460.0,0.00024618,2]
[378473144,1754878254441,-1198.72,0.00024618,2]
[378473145,1754878254451,-586.21,0.00024618,2]
[378473146,1754878254461,-460.0,0.00024618,2]
[378473147,1754878254471,-460.0,0.00024618,2]
[378473148,1754878254480,-540.61391547,0.00024618,2]
[378473149,1754878254490,-460.0,0.00024618,2]
[378473150,1754878254500,-460.0,0.00024618,2]
[378473151,1754878254509,-633.18,0.00024619,2]
[378473152,1754878254519,-588.69,0.00024619,2]
[378473153,1754878254528,-825.432569,0.00024649,7]
[378473154,1754878254538,-825.432569,0.00024649,7]
[378473155,1754878254547,-175.747796,0.00024649,5]
[378473156,1754878254557,-825.432569,0.0002465,7]
[378473157,1754878254567,-825.432569,0.0002465,7]
[378473158,1754878254576,-175.747796,0.00024657,4]
[378473159,1754878254585,-175.747796,0.00024657,4]
[378473160,1754878254595,-175.747796,0.00024657,4]
[378473161,1754878254604,-175.747796,0.00024657,4]
[378473162,1754878254613,-175.747796,0.00024657,4]
[378473163,1754878254623,-7446.93,0.00024657,4]
[378473164,1754878254633,-1000.0,0.00024658,2]
[378473165,1754878254643,-1000.0,0.00024658,2]
[378473166,1754878254652,-1000.0,0.00024658,2]
[378473167,1754878254661,-1000.0,0.00024658,2]
[378473168,1754878254671,-1000.0,0.00024658,2]
[378473169,1754878254681,-1000.0,0.00024658,2]
[378473170,1754878254690,-1000.0,0.00024658,2]
[378473171,1754878254699,-1000.0,0.00024658,2]
[378473172,1754878254709,-1000.0,0.00024658,2]
[378473173,1754878254718,-1000.0,0.00024658,2]
[378473174,1754878254727,-1000.0,0.00024658,2]
[378473175,1754878254737,-1000.0,0.00024658,2]
[378473176,1754878254747,-1000.0,0.00024658,2]
[378473177,1754878254756,-1000.0,0.00024658,2]
[378473178,1754878254766,-1000.0,0.00024658,2]
[378473179,1754878254775,-1000.0,0.00024658,2]
[378473180,1754878254784,-1000.0,0.00024658,2]
[378473181,1754878254793,-615.21866768,0.00024658,2]
[378473182,1754878254803,-380.0,0.00024658,2]
[378473183,1754878254813,-522.42955676,0.00024658,2]
[378473184,1754878254822,-527.9539256,0.000247,7]
[378473185,1754878254832,-160.0,0.000247,7]
[378473186,1754878254841,-160.0,0.000247,7]
[378473187,1754878254851,-461.69158338,0.000247,7]
[378473188,1754878254860,-216.68257536,0.000247,7]
[378473190,1754878254869,-160.0,0.000247,7]
[378473192,1754878254879,-160.0,0.000247,7]
[378473194,1754878254888,-160.0,0.000247,7]
[378473196,1754878254897,-231.9940742,0.000247,7]
[378473198,1754878254907,-160.0,0.000247,7]
[378473200,1754878254917,-215.4905783,0.000247,7]
[378473202,1754878254926,-312.16666667,0.000247,7]
[378473204,1754878254935,-160.0,0.000247,7]
[378473206,1754878254944,-2068.53565647,0.00024719,2]
[378473208,1754878254954,-650.0,0.00024719,2]
[378473210,1754878254963,-612.95,0.00024722,2]
[378473212,1754878254972,-2769.19,0.00024722,2]
[378473214,1754878254981,-680.29,0.00024722,2]
[378473215,1754878254990,-1266.83,0.00024724,2]
[378473217,1754878255000,-967.65,0.00024731,2]
[378473219,1754878255009,-1014.4437625,0.00024734,2]
[378473220,1754878255018,-535.9525052,0.00024773,2]
[378473221,1754878255028,-500.0,0.00024773,2]
[378473222,1754878255038,-500.0,0.00024773,2]
[378473224,1754878255048,-636.0,0.00024796,2]
[378473226,1754878255057,-2151.0,0.00024796,2]
[378473228,1754878255067,-971.0,0.00024796,2]
[378473229,1754878255076,-825.432569,0.000248,7]
[378473230,1754878255085,-825.432569,0.000248,7]
[378473231,1754878255094,-8734.38280605,0.000248,2]
[378473232,1754878255104,-500.0,0.00024873,2]
[378473233,1754878255113,-150.0,0.00024873,2]
[378473234,1754878255122,-760.0,0.00024888,2]
[378473235,1754878255133,-250.0,0.00024888,2]
[378473236,1754878255144,-460.0,0.00024889,2]
[378473237,1754878255155,-1142.4,0.00024889,2]
[378473238,1754878255165,-974.2,0.00024889,2]
[378473239,1754878255174,-2047.56,0.00024889,2]
[378473240,1754878255184,-615.78,0.0002489,2]
[378473241,1754878255194,-1244.45,0.0002489,2]
[378473242,1754878255204,-846.32,0.0002489,2]
[378473243,1754878255213,-460.0,0.00024892,2]
[378473244,1754878255224,-1198.72,0.00024892,2]
[378473245,1754878255234,-586.21,0.00024892,2]
[378473246,1754878255243,-460.0,0.00024892,2]
[378473247,1754878255253,-247.14793502,0.00024892,2]
[378473248,1754878255263,-460.0,0.00024892,2]
[378473249,1754878255272,-163.82078924,0.00024892,2]
[378473250,1754878255282,-633.18,0.00024893,2]
[378473251,1754878255291,-588.69,0.00024893,2]
[378473252,1754878255300,-190.2,0.000249,3]
[378473253,1754878255309,-504153.89312413,0.000249,2]
[378473254,1754878255607,-1425.3725859,0.0001999,2]
[378473255,1754878255617,-460.0,0.00020782,2]
[378473256,1754878255626,-460.0,0.00021056,2]
[378473257,1754878255638,-460.0,0.0002133,2]
[378473258,1754878255647,-250.0,0.00022,2]
[378473259,1754878255657,-2741.1007679,0.00022569,2]
[378473260,1754878257106,-460.0,0.00019957,2]
[378473261,1754878257116,-460.0,0.00019957,2]
[378473262,1754878257125,-460.0,0.0001996,2]
[378473263,1754878257135,-465.32232785,0.0001996,2]
[378473264,1754878257147,-460.0,0.0001996,2]
[378473265,1754878257157,-460.0,0.0001996,2]
[378473266,1754878257168,-460.0,0.0001996,2]
[378473267,1754878257177,-162.51959931,0.00019963,2]
[378473268,1754878257187,-460.0,0.00020231,2]
[378473269,1754878257196,-460.0,0.00020231,2]
[378473270,1754878257206,-460.0,0.00020234,2]
[378473271,1754878257225,-460.0,0.00020234,2]
[378473272,1754878257235,-460.0,0.00020234,2]
[378473273,1754878257244,-460.0,0.00020234,2]
[378473274,1754878257254,-460.0,0.00020234,2]
[378473275,1754878257264,-500.0,0.00020503,2]
[378473276,1754878257274,-628.13602928,0.00020503,2]
[378473277,1754878257290,-460.0,0.00020505,2]
[378473278,1754878257300,-460.0,0.00020508,2]
[378473279,1754878257310,-460.0,0.00020508,2]
[378473280,1754878257319,-460.0,0.00020508,2]
[378473281,1754878257330,-461.83388718,0.00020508,2]
[378473282,1754878257340,-460.0,0.00020508,2]
[378473283,1754878257349,-373.29,0.00020779,2]
[378473284,1754878257359,-570.39,0.00020782,2]
[378473285,1754878257368,-460.0,0.00020782,2]
[378473286,1754878257377,-460.0,0.00020782,2]
[378473287,1754878257387,-460.0,0.00021056,2]
[378473288,1754878257397,-460.0,0.00021056,2]
[378473289,1754878257407,-17800.15206051,0.00022569,2]
[378473290,1754878257416,-20541.25282841,0.00024899,2]
[378473291,1754878257425,-180747.44176557,0.000249,2]
[378473294,1754878259315,150.0,0.00027862,30]
[378473295,1754878336014,59925.69225058,0.00019864,2]
[378473296,1754878355779,178.756018,0.00013699,2]
[378473306,1754878417493,7634.7966262,0.00019,2]
[378473308,1754878423399,1679.35669152,0.000199,2]
[378473314,1754878458648,191.931174,0.00019863,2]
[378473316,1754878467175,203.11494807,0.00019857,2]
[378473321,1754878551306,10000.0,0.0001896,2]
[378473322,1754878593697,507.22188125,0.0001986,2]
[378473323,1754878621331,1716.21987812,0.000199,2]
[378473324,1754878710824,150.5,0.0002191,120]
[378473325,1754878711298,150.5,0.000219,120]
[378473326,1754878711747,150.5,0.0002189,120]
[378473327,1754878711916,238.0,0.0002191,120]
[378473328,1754878712429,150.5,0.00024989,120]
[378473329,1754878712460,238.0,0.000219,120]
[378473330,1754878712620,150.5,0.00024979,120]
[378473331,1754878712796,238.0,0.0002189,120]
[378473332,1754878713096,150.5,0.00024969,120]
[378473333,1754878713236,238.0,0.00024989,120]
[378473334,1754878713641,150.5,0.0002889,120]
[378473335,1754878714082,150.5,0.0002888,120]
[378473336,1754878714265,238.0,0.00024979,120]
[378473337,1754878714700,238.0,0.00024969,120]
[378473338,1754878715292,238.0,0.0002889,120]
[378473339,1754878715737,238.0,0.0002888,120]
[378473340,1754878785378,570.62461645,0.00019858,2]
[378473341,1754878808964,1380.0,0.00019953,2]
[378473342,1754878812177,159.0,0.000199,2]
[378473343,1754878813115,159.0,0.000199,2]
[378473344,1754878828015,150.5,0.0002191,120]
[378473345,1754878829535,500.0,0.0003013,120]
[378473347,1754878837657,1659.01254883,0.000199,2]
[378473350,1754878872936,1760.0,0.00030136,120]
[378473351,1754878875799,159.0,0.00028,31]
[378473352,1754878891355,162.91767095,0.000301,120]
[378473353,1754878910797,163.51463159,0.000199,2]
[378473354,1754878917930,2519.3619688,0.00019854,2]
[378473355,1754878921685,24900.0,0.00018959,2]
[378473358,1754878955267,474.84,0.0001995,3]
[378473359,1754878961705,1575.55215787,0.00025,120]
[378473360,1754878970997,150.0,0.00027766,30]
[378473361,1754878976234,499.29653935,0.00019858,2]
[378473362,1754878989252,10731.89641324,0.0001986,2]
[378473363,1754878992296,286.65,0.0001995,3]
[378473364,1754879002689,1998.0,0.00031324,30]
[378473365,1754879003206,169.7,0.0001995,3]
[378473366,1754879014012,509.14,0.0001995,3]
[378473369,1754879068451,1661.66479277,0.000199,2]
[378473370,1754879069784,150.5,0.0002191,120]
[378473371,1754879070110,150.5,0.000219,120]
[378473372,1754879070337,828.0,0.00019953,2]
[378473373,1754879070576,182.58,0.0002189,120]
[378473375,1754879117133,268.8,0.0001995,3]
[378473377,1754879127078,150.0,0.00027872,30]
[378473378,1754879127905,806.44,0.0001995,3]
[378473379,1754879144286,45076.00640308,0.00019859,2]
[378473382,1754879177030,502.05576128,0.00019857,2]
[378473386,1754879213324,150.0,0.00027979,30]
[378473389,1754879250489,728.47359831,0.00019859,2]
[378473392,1754879259918,1764.66587956,0.000199,2]
[378473393,1754879260325,57885.89702885,0.00031344,30]
[378473402,1754879319834,519.86863628,0.00031344,60]
[378473404,1754879320754,1959.56567205,0.00028,30]
[378473405,1754879323916,150.9999998,0.00031344,120]
[378473415,1754879382539,439.29879112,0.00019857,2]
[378473416,1754879382605,150.0,0.00027704,30]
[378473420,1754879414569,186.490531,0.00019863,2]
[378473421,1754879429528,262.78,0.0002191,120]
[378473903,1754879437923,-160.0,0.00019954,2]
[378473904,1754879437934,-1200.0,0.00019954,2]
[378473905,1754879437943,-1200.0,0.00019955,2]
[378473906,1754879437953,-300.0,0.00019955,2]
[378473907,1754879437963,-300.0,0.00019955,2]
[378473908,1754879437973,-300.0,0.00019955,2]
[378473909,1754879437982,-300.0,0.00019955,2]
[378473910,1754879437991,-300.0,0.00019955,2]
[378473911,1754879438001,-460.0,0.00019956,2]
[378473912,1754879438011,-460.0,0.00019956,2]
[378473913,1754879438021,-461.13613122,0.00019956,2]
[378473914,1754879438030,-460.0,0.00019956,2]
[378473915,1754879438038,-460.0,0.00019956,2]
[378473916,1754879438045,-460.0,0.00019956,2]
[378473918,1754879438052,-661.12,0.00019956,2]
[378473919,1754879438060,-460.0,0.00019956,2]
[378473920,1754879438070,-460.0,0.00019956,2]
[378473921,1754879438079,-175.39242547,0.00019956,2]
[378473922,1754879438088,-460.0,0.00019956,2]
[378473923,1754879438097,-460.0,0.00019956,2]
[378473924,1754879438107,-460.0,0.00019956,2]
[378473925,1754879438116,-460.0,0.00019956,2]
[378473926,1754879438126,-461.25144439,0.00019956,2]
[378473927,1754879438139,-460.0,0.00019956,2]
[378473928,1754879438149,-460.0,0.00019956,2]
[378473929,1754879438158,-460.0,0.00019956,2]
[378473930,1754879438167,-460.59777338,0.00019956,2]
[378473931,1754879438176,-460.0,0.00019956,2]
[378473932,1754879438186,-265.0,0.00019956,2]
[378473933,1754879438196,-617.90321144,0.00019956,2]
[378473934,1754879438205,-500.0,0.00019956,2]
[378473935,1754879438214,-500.0,0.00019956,2]
[378473936,1754879438224,-500.0,0.00019956,2]
[378473937,1754879438234,-500.0,0.00019956,2]
[378473938,1754879438243,-500.0,0.00019956,2]
[378473939,1754879438252,-216.97137847,0.00019956,2]
[378473940,1754879438262,-500.0,0.00019956,2]
[378473941,1754879438271,-500.0,0.00019956,2]
[378473942,1754879438280,-242.87713413,0.00019956,2]
[378473943,1754879438290,-500.0,0.00019956,2]
[378473944,1754879438299,-380.19954964,0.00019956,2]
[378473945,1754879438309,-500.0,0.00019956,2]
[378473946,1754879438318,-500.0,0.00019956,2]
[378473947,1754879438328,-500.0,0.00019956,2]
[378473948,1754879438338,-500.0,0.00019956,2]
[378473949,1754879438347,-500.0,0.00019956,2]
[378473950,1754879438356,-500.0,0.00019956,2]
[378473951,1754879438366,-500.0,0.00019956,2]
[378473952,1754879438375,-500.0,0.00019956,2]
[378473953,1754879438387,-500.0,0.00019956,2]
[378473954,1754879438397,-500.0,0.00019956,2]
[378473955,1754879438406,-500.0,0.00019956,2]
[378473956,1754879438416,-500.0,0.00019956,2]
[378473957,1754879438425,-500.0,0.00019956,2]
[378473958,1754879438435,-500.0,0.00019956,2]
[378473959,1754879438445,-500.0,0.00019956,2]
[378473960,1754879438454,-500.0,0.00019956,2]
[378473961,1754879438463,-500.0,0.00019956,2]
[378473962,1754879438472,-500.0,0.00019956,2]
[378473963,1754879438482,-500.0,0.00019956,2]
[378473964,1754879438491,-586.79317886,0.00019956,2]
[378473965,1754879438501,-500.0,0.00019957,2]
[378473966,1754879438511,-460.0,0.00019957,2]
[378473967,1754879438523,-460.0,0.00019957,2]
[378473968,1754879438532,-585.65132652,0.00019957,2]
[378473969,1754879438543,-460.0,0.00019957,2]
[378473970,1754879438552,-460.0,0.00019957,2]
[378473971,1754879438563,-460.0,0.00019957,2]
[378473972,1754879438572,-460.0,0.00019957,2]
[378473973,1754879438582,-460.0,0.00019957,2]
[378473974,1754879438592,-460.0,0.00019957,2]
[378473975,1754879438602,-460.0,0.00019957,2]
[378473976,1754879438611,-460.0,0.00019957,2]
[378473977,1754879438621,-460.0,0.00019957,2]
[378473978,1754879438633,-460.0,0.00019957,2]
[378473979,1754879438643,-465.02561235,0.00019957,2]
[378473980,1754879438652,-462.81711062,0.00019957,2]
[378473981,1754879438662,-460.0,0.00019957,2]
[378473982,1754879438672,-460.0,0.00019957,2]
[378473983,1754879438681,-460.0,0.00019957,2]
[378473984,1754879438690,-460.0,0.00019957,2]
[378473985,1754879438700,-460.0,0.00019957,2]
[378473986,1754879438709,-460.0,0.00019957,2]
[378473987,1754879438718,-460.0,0.00019957,2]
[378473988,1754879438727,-460.0,0.00019957,2]
[378473989,1754879438737,-460.0,0.00019957,2]
[378473991,1754879438746,-460.0,0.00019957,2]
[378473992,1754879438756,-460.0,0.00019957,2]
[378473994,1754879438765,-460.0,0.00019957,2]
[378473996,1754879438775,-460.0,0.00019957,2]
[378473998,1754879438784,-471.14413911,0.00019957,2]
[378473999,1754879438794,-467.97788334,0.00019957,2]
[378474001,1754879438804,-467.5673026,0.00019957,2]
[378474002,1754879438815,-460.0,0.00019957,2]
[378474004,1754879438825,-464.45764665,0.00019957,2]
[378474006,1754879438835,-463.96974509,0.00019957,2]
[378474007,1754879438846,-462.30852597,0.00019957,2]
[378474008,1754879438856,-460.0,0.00019957,2]
[378474009,1754879438866,-480.4,0.00019957,2]
[378474010,1754879438876,-460.0,0.00019957,2]
[378474011,1754879438891,-460.0,0.00019957,2]
[378474012,1754879438901,-468.22781975,0.00019957,2]
[378474013,1754879438910,-460.0,0.00019957,2]
[378474014,1754879438919,-460.0,0.00019957,2]
[378474015,1754879438929,-460.0,0.00019957,2]
[378474016,1754879438938,-460.0,0.00019957,2]
[378474017,1754879438947,-460.0,0.00019957,2]
[378474018,1754879438957,-460.0,0.00019957,2]
[378474019,1754879438966,-460.0,0.00019957,2]
[378474020,1754879438976,-460.0,0.00019957,2]
[378474021,1754879438986,-461.94,0.00019957,2]
[378474022,1754879438995,-460.0,0.00019957,2]
[378474023,1754879439005,-428.82257306,0.00019957,2]
[378474024,1754879439015,-460.0,0.00019957,2]
[378474025,1754879439025,-460.0,0.00019957,2]
[378474026,1754879439034,-460.0,0.00019957,2]
[378474027,1754879439043,-460.0,0.00019957,2]
[378474029,1754879439053,-460.0,0.00019957,2]
[378474030,1754879439063,-756.38,0.00019957,2]
[378474031,1754879439072,-460.0,0.00019957,2]
[378474032,1754879439082,-1399.25,0.00019957,2]
[378474033,1754879439092,-600.31564326,0.00019957,2]
[378474034,1754879439101,-460.0,0.00019957,2]
[378474035,1754879439111,-460.0,0.00019957,2]
[378474036,1754879439120,-460.0,0.00019957,2]
[378474037,1754879439131,-460.0,0.00019957,2]
[378474038,1754879439141,-460.0,0.00019957,2]
[378474039,1754879439150,-460.0,0.00019957,2]
[378474040,1754879439160,-460.0,0.00019957,2]
[378474041,1754879439169,-460.0,0.00019957,2]
[378474042,1754879439178,-279.20289918,0.00019957,2]
[378474043,1754879439187,-460.0,0.00019957,2]
[378474045,1754879439197,-460.0,0.00019957,2]
[378474047,1754879439206,-460.0,0.00019957,2]
[378474048,1754879439216,-460.0,0.00019957,2]
[378474050,1754879439225,-460.0,0.00019957,2]
[378474052,1754879439234,-460.0,0.00019957,2]
[378474053,1754879439244,-1560.09,0.00019957,2]
[378474054,1754879439253,-460.0,0.00019957,2]
[378474055,1754879439262,-460.0,0.00019957,2]
[378474058,1754879439271,-460.0,0.00019957,2]
[378474060,1754879439281,-460.0,0.00019957,2]
[378474062,1754879439290,-460.0,0.00019957,2]
[378474063,1754879439299,-460.0,0.00019957,2]
[378474064,1754879439308,-552.23,0.00019957,2]
[378474065,1754879439317,-460.0,0.00019957,2]
[378474066,1754879439327,-460.0,0.00019957,2]
[378474067,1754879439335,-460.0,0.00019957,2]
[378474068,1754879439345,-460.0,0.00019957,2]
[378474069,1754879439354,-460.0,0.00019957,2]
[378474070,1754879439363,-2297.75,0.00019957,2]
[378474071,1754879439373,-460.0,0.00019957,2]
[378474073,1754879439383,-460.0,0.00019957,2]
[378474075,1754879439392,-460.0,0.00019957,2]
[378474076,1754879439402,-460.0,0.00019957,2]
[378474077,1754879439411,-460.0,0.00019957,2]
[378474078,1754879439420,-464.20987264,0.00019957,2]
[378474079,1754879439430,-460.0,0.00019957,2]
[378474080,1754879439440,-460.0,0.00019957,2]
[378474081,1754879439451,-458.00359183,0.00019957,2]
[378474082,1754879439463,-460.0,0.00019957,2]
[378474083,1754879439474,-460.0,0.00019957,2]
[378474084,1754879439485,-460.0,0.00019957,2]
[378474085,1754879439497,-460.0,0.00019957,2]
[378474086,1754879439508,-460.0,0.00019957,2]
[378474087,1754879439519,-475.29722208,0.00019957,2]
[378474088,1754879439533,-460.0,0.00019957,2]
[378474089,1754879439545,-460.0,0.00019957,2]
[378474090,1754879439554,-460.0,0.00019958,2]
[378474091,1754879439565,-167.98006221,0.00019958,2]
[378474092,1754879439575,-460.0,0.00019958,2]
[378474093,1754879439585,-464.52751358,0.00019958,2]
[378474094,1754879439595,-472.10543628,0.00019958,2]
[378474095,1754879439605,-460.0,0.00019958,2]
[378474096,1754879439614,-460.0,0.00019958,2]
[378474097,1754879439623,-460.0,0.00019958,2]
[378474099,1754879439637,-466.27704126,0.00019958,2]
[378474100,1754879439647,-460.0,0.00019958,2]
[378474101,1754879439657,-460.0,0.00019958,2]
[378474102,1754879439668,-460.0,0.00019958,2]
[378474103,1754879439678,-460.0,0.00019958,2]
[378474104,1754879439688,-460.0,0.00019958,2]
[378474105,1754879439698,-460.0,0.00019958,2]
[378474106,1754879439708,-460.0,0.00019958,2]
[378474107,1754879439717,-460.0,0.00019958,2]
[378474108,1754879439726,-460.0,0.00019958,2]
[378474109,1754879439736,-460.0,0.00019958,2]
[378474110,1754879439746,-460.0,0.00019958,2]
[378474111,1754879439756,-460.0,0.00019958,2]
[378474112,1754879439765,-460.0,0.00019958,2]
[378474113,1754879439777,-460.0,0.00019958,2]
[378474114,1754879439786,-460.0,0.00019958,2]
[378474115,1754879439796,-460.0,0.00019958,2]
[378474116,1754879439806,-467.81514103,0.00019958,2]
[378474117,1754879439816,-460.0,0.00019958,2]
[378474118,1754879439826,-465.0570928,0.00019958,2]
[378474119,1754879439836,-460.0,0.00019958,2]
[378474120,1754879439846,-568.91,0.00019958,2]
[378474121,1754879439856,-460.0,0.00019958,2]
[378474122,1754879439865,-460.0,0.00019958,2]
[378474123,1754879439874,-460.0,0.00019958,2]
[378474124,1754879439888,-1306.56,0.00019958,2]
[378474125,1754879439899,-460.0,0.00019958,2]
[378474126,1754879439908,-460.0,0.00019958,2]
[378474127,1754879439917,-463.91880729,0.00019958,2]
[378474129,1754879439926,-645.62,0.00019958,2]
[378474131,1754879439936,-460.0,0.00019958,2]
[378474133,1754879439946,-460.0,0.00019958,2]
[378474134,1754879439955,-460.0,0.00019958,2]
[378474136,1754879439964,-460.0,0.00019958,2]
[378474138,1754879439974,-460.0,0.00019958,2]
[378474140,1754879439984,-460.0,0.00019958,2]
[378474141,1754879439993,-460.0,0.00019958,2]
[378474143,1754879440002,-460.0,0.00019958,2]
[378474145,1754879440011,-1166.95,0.00019958,2]
[378474146,1754879440021,-462.70969795,0.00019958,2]
[378474148,1754879440030,-464.08472622,0.00019958,2]
[378474150,1754879440040,-461.82791036,0.00019958,2]
[378474152,1754879440049,-460.0,0.00019958,2]
[378474153,1754879440058,-488.52474509,0.00019958,2]
[378474155,1754879440068,-500.0,0.00019958,2]
[378474157,1754879440078,-500.0,0.00019958,2]
[378474160,1754879440088,-500.0,0.00019958,2]
[378474162,1754879440097,-460.0,0.00019958,2]
[378474164,1754879440106,-460.0,0.00019958,2]
[378474165,1754879440115,-460.0,0.00019958,2]
[378474168,1754879440124,-460.0,0.00019958,2]
[378474169,1754879440137,-460.0,0.00019958,2]
[378474171,1754879440147,-460.0,0.00019958,2]
[378474173,1754879440156,-460.0,0.00019958,2]
[378474175,1754879440165,-460.0,0.00019958,2]
[378474177,1754879440174,-500.0,0.00019958,2]
[378474179,1754879440184,-500.0,0.00019958,2]
[378474181,1754879440193,-500.0,0.00019958,2]
[378474183,1754879440202,-460.0,0.00019958,2]
[378474185,1754879440211,-460.0,0.00019958,2]
[378474187,1754879440220,-262.4656749,0.00019958,2]
[378474189,1754879440229,-460.0,0.00019958,2]
[378474191,1754879440238,-1333.39,0.00019958,2]
[378474193,1754879440247,-460.0,0.00019958,2]
[378474195,1754879440257,-460.0,0.00019958,2]
[378474197,1754879440267,-460.0,0.00019959,2]
[378474199,1754879440276,-460.0,0.00019959,2]
[378474201,1754879440286,-460.0,0.00019959,2]
[378474203,1754879440296,-460.0,0.00019959,2]
[378474205,1754879440306,-460.0,0.00019959,2]
[378474207,1754879440316,-460.5131009,0.00019959,2]
[378474209,1754879440325,-460.0,0.00019959,2]
[378474211,1754879440335,-378.9157829,0.00019959,2]
[378474213,1754879440344,-460.0,0.00019959,2]
[378474215,1754879440353,-460.0,0.00019959,2]
[378474217,1754879440362,-472.35261588,0.00019959,2]
[378474219,1754879440371,-460.0,0.00019959,2]
[378474221,1754879440382,-511.72721072,0.00019959,2]
[378474222,1754879440392,-461.51129196,0.00019959,2]
[378474224,1754879440401,-471.75048228,0.00019959,2]
[378474226,1754879440411,-460.0,0.00019959,2]
[378474228,1754879440420,-461.95456462,0.00019959,2]
[378474231,1754879440429,-462.82593689,0.00019959,2]
[378474233,1754879440439,-285.25487597,0.00019959,2]
[378474234,1754879440449,-470.1069016,0.00019959,2]
[378474237,1754879440459,-464.45668414,0.00019959,2]
[378474239,1754879440469,-462.1005332,0.00019959,2]
[378474240,1754879440478,-462.55279058,0.00019959,2]
[378474242,1754879440488,-461.23909881,0.00019959,2]
[378474245,1754879440498,-460.0,0.00019959,2]
[378474247,1754879440508,-462.01067653,0.00019959,2]
[378474248,1754879440519,-460.0,0.00019959,2]
[378474250,1754879440532,-460.0,0.00019959,2]
[378474252,1754879440542,-460.0,0.00019959,2]
[378474254,1754879440552,-460.0,0.00019959,2]
[378474256,1754879440563,-460.0,0.00019959,2]
[378474258,1754879440572,-460.0,0.00019959,2]
[378474260,1754879440582,-460.0,0.00019959,2]
[378474262,1754879440591,-462.53642425,0.00019959,2]
[378474264,1754879440603,-460.0,0.00019959,2]
[378474266,1754879440613,-460.0,0.00019959,2]
[378474268,1754879440622,-465.2249507,0.00019959,2]
[378474270,1754879440633,-322.09388465,0.00019959,2]
[378474272,1754879440643,-460.0,0.00019959,2]
[378474274,1754879440653,-464.59492655,0.00019959,2]
[378474276,1754879440663,-464.27993058,0.00019959,2]
[378474278,1754879440672,-465.13447324,0.00019959,2]
[378474295,1754879440804,-460.0,0.00019959,2]
[378474298,1754879440839,-463.15122904,0.00019959,2]
[378474300,1754879440848,-460.0,0.00019959,2]
[378474302,1754879440858,-463.34099473,0.00019959,2]
[378474304,1754879440867,-473.21334061,0.00019959,2]
[378474305,1754879440877,-461.01207382,0.00019959,2]
[378474307,1754879440888,-462.47629294,0.00019959,2]